bitfinex/quotes_SOLUSD_20250929
["timestamp","ask_amount","ask_price","bid_price","bid_amount"]
[1759123405576,3.18439272,209.75,209.72,5.45826244]
[1759123408983,3.18439272,209.75,209.72,4.76826244]
[1759123409176,0.66,209.74,209.72,4.76826244]
[1759123409789,3.18439272,209.75,209.72,4.76826244]
[1759123410384,3.84439272,209.75,209.71,16.68939694]
[1759123410586,3.84439272,209.75,209.71,17.37939694]
[1759123412695,2.38782381,209.73,209.68,4.7689533]
[1759123412873,0.66,209.72,209.68,4.7689533]
[1759123413279,0.66,209.71,209.68,4.7689533]
[1759123413578,0.66,209.7,209.68,4.7689533]
[1759123413776,0.66,209.69,209.67,322.30024687]
[1759123413975,2.38782381,209.7,209.67,322.30024687]
[1759123414180,0.66,209.68,209.67,322.30024687]
[1759123415400,39.86782381,209.7,209.67,322.30024687]
[1759123415587,0.66,209.69,209.67,322.30024687]
[1759123415899,2.38782381,209.7,209.67,322.30024687]
[1759123416098,0.66,209.68,209.67,322.30024687]
[1759123417706,43.43998673,209.68,209.67,322.30024687]
[1759123417871,48.2091588,209.68,209.67,322.30024687]
[1759123418276,85.0291588,209.68,209.67,322.30024687]
[1759123418499,3.18439272,209.68,209.67,322.30024687]
[1759123418688,2.38782381,209.69,209.67,327.0696464]
[1759123418877,2.38782381,209.69,209.67,327.7596464]
[1759123420574,2.38782381,209.69,209.67,327.0696464]
[1759123421305,3.04782381,209.69,209.67,322.30024687]
[1759123421602,0.66,209.68,209.67,322.30024687]
[1759123421991,29.84439272,209.68,209.67,322.30024687]
[1759123422392,34.61356479,209.68,209.67,322.30024687]
[1759123425103,29.84439272,209.68,209.67,322.30024687]
[1759123425611,26.66,209.68,209.67,322.30024687]
[1759123425905,31.42917207,209.68,209.67,322.30024687]
[1759123426110,34.61356479,209.68,209.67,322.30024687]
[1759123426701,29.84439272,209.68,209.67,322.30024687]
[1759123427006,26.0,209.68,209.67,322.30024687]
[1759123431821,26.68,209.68,209.67,322.30024687]
[1759123432196,28.20841251,209.68,209.67,322.30024687]
[1759123437347,32.97758458,209.68,209.67,322.30024687]
[1759123439122,46.57317859,209.68,209.67,322.30024687]
[1759123439307,49.75757131,209.68,209.67,322.30024687]
[1759123440820,44.98839924,209.68,209.67,322.30024687]
[1759123441026,31.39280523,209.68,209.67,322.30024687]
[1759123441235,28.20841251,209.68,209.67,322.30024687]
[1759123442439,32.97758458,209.68,209.67,322.30024687]
[1759123442738,32.29758458,209.68,209.67,322.30024687]
[1759123442942,27.52841251,209.68,209.67,322.30024687]
[1759123443127,28.20841251,209.68,209.67,322.30024687]
[1759123443323,26.0,209.68,209.67,322.30024687]
[1759123443533,27.52841251,209.68,209.67,322.30024687]
[1759123444814,32.97758458,209.68,209.67,322.30024687]
[1759123445029,6.97758458,209.68,209.67,322.30024687]
[1759123446136,10.15444839,209.68,209.67,322.30024687]
[1759123446322,6.97758458,209.68,209.67,322.30024687]
[1759123446740,10.15444839,209.68,209.67,322.30024687]
[1759123446923,6.97758458,209.68,209.67,322.30024687]
[1759123447118,23.7500424,209.68,209.67,322.30024687]
[1759123451319,20.57317859,209.68,209.67,98.66463267]
[1759123452055,47.27451022,209.68,209.67,42.11258467]
[1759123452357,39.59559401,209.64,209.63,0.1]
[1759123452551,41.12400652,209.64,209.63,0.1]
[1759123452752,46.59408856,209.64,209.63,0.1]
[1759123453042,46.59408856,209.64,209.6,0.1]
[1759123453043,94.50622945,209.64,209.6,0.1]
[1759123453346,94.50622945,209.64,209.57,0.1]
[1759123453347,39.59559401,209.58,209.57,0.1]
[1759123453529,41.12400652,209.58,209.57,0.1]
[1759123453728,41.82400652,209.58,209.57,0.1]
[1759123455022,46.59545417,209.58,209.57,0.1]
[1759123456835,48.51001681,209.58,209.57,0.1]
[1759123458755,46.59545417,209.58,209.57,0.1]
[1759123463162,45.89545417,209.58,209.57,0.1]
[1759123464155,46.61545417,209.58,209.57,0.1]
[1759123465061,45.89545417,209.58,209.57,0.1]
[1759123466064,44.36704166,209.58,209.57,0.1]
[1759123468471,45.08704166,209.58,209.57,0.1]
[1759123468864,44.36704166,209.58,209.57,0.1]
[1759123470783,39.59559401,209.58,209.57,0.1]
[1759123471066,31.9262523,209.63,209.57,0.77]
[1759123471067,26.0,209.6,209.57,0.77]
[1759123471367,26.0,209.58,209.57,0.77]
[1759123472066,44.22830097,209.6,209.57,0.1]
[1759123472258,2.2498277,209.58,209.57,0.1]
[1759123472463,65.0898277,209.58,209.57,0.1]
[1759123472965,68.33144765,209.58,209.57,0.1]
[1759123473169,46.61686936,209.58,209.57,0.1]
[1759123473672,83.45686936,209.58,209.57,0.1]
[1759123473972,46.61686936,209.58,209.57,0.1]
[1759123474265,83.45686936,209.58,209.57,0.1]
[1759123476753,67.61144765,209.58,209.57,0.1]
[1759123478771,68.33144765,209.58,209.57,0.1]
[1759123478952,63.56,209.58,209.57,0.1]
[1759123479156,67.61144765,209.58,209.57,0.1]
[1759123480078,30.77144765,209.58,209.57,0.1]
[1759123480281,67.61144765,209.58,209.57,0.1]
[1759123481857,26.0,209.58,209.57,0.77]
[1759123482157,36.84,209.58,209.57,0.77]
[1759123484169,30.77127297,209.59,209.57,0.77]
[1759123484360,36.84,209.58,209.57,0.1]
[1759123485677,36.84,209.58,209.57,0.77]
[1759123486178,36.84,209.58,209.57,0.1]
[1759123487383,68.33144765,209.58,209.57,0.1]
[1759123487779,31.49144765,209.58,209.57,0.1]
[1759123488077,68.33144765,209.58,209.57,0.1]
[1759123488283,34.66120927,209.58,209.57,0.1]
[1759123488499,68.33144765,209.58,209.57,0.1]
[1759123488668,71.50120927,209.58,209.57,0.1]
[1759123488872,85.09680328,209.58,209.57,0.1]
[1759123489956,85.09680328,209.58,209.53,0.1]
[1759123489957,117.02542242,209.58,209.53,0.1]
[1759123490164,1.52977931,209.54,209.53,0.1]
[1759123490484,38.36977931,209.54,209.53,0.1]
[1759123490670,52.68537332,209.54,209.53,0.1]
[1759123490872,57.76988087,209.54,209.53,0.1]
[1759123491088,20.92988087,209.54,209.53,0.1]
[1759123491376,4.77281405,209.52,209.45,4.74437702]
[1759123491582,26.0,209.48,209.44,4.87460076]
[1759123491776,26.0,209.45,209.44,4.87460076]
[1759123492587,36.84,209.47,209.44,4.87460076]
[1759123492883,26.0,209.45,209.44,4.87460076]
[1759123493264,26.0,209.45,209.44,5.24460076]
[1759123493463,26.0,209.48,209.44,5.24460076]
[1759123493663,26.0,209.45,209.44,4.87460076]
[1759123494086,36.84,209.47,209.44,5.24460076]
[1759123494287,26.0,209.45,209.44,4.87460076]
[1759123494863,36.84,209.48,209.44,17.18119357]
[1759123495068,4.77308825,209.51,209.45,0.37]
[1759123495282,26.0,209.47,209.45,0.37]
[1759123495584,26.0,209.46,209.45,0.37]
[1759123496686,26.0,209.46,209.45,5.14440916]
[1759123496888,36.84,209.49,209.45,5.14440916]
[1759123497078,36.84,209.49,209.46,0.37]
[1759123497401,36.84,209.49,209.47,0.37]
[1759123497989,2.39189177,209.52,209.47,0.37]
[1759123498173,36.0,209.51,209.47,0.37]
[1759123498490,63.5,209.51,209.45,5.14440916]
[1759123498885,62.84,209.51,209.46,0.37]
[1759123499084,26.0,209.51,209.46,0.37]
[1759123499283,36.84,209.5,209.46,0.37]
[1759123499489,26.66,209.51,209.46,0.37]
[1759123499670,36.84,209.5,209.46,0.37]
[1759123499872,36.84,209.5,209.47,0.37]
[1759123500481,36.84,209.5,209.45,16.71043207]
[1759123500795,36.84,209.5,209.46,0.37]
[1759123501092,26.0,209.51,209.46,0.37]
[1759123501528,36.84,209.5,209.46,0.37]
[1759123502000,26.66,209.51,209.45,16.71043207]
[1759123502584,36.84,209.5,209.45,16.71043207]
[1759123502784,36.84,209.5,209.45,17.08043207]
[1759123503198,37.5,209.5,209.45,17.08043207]
[1759123505798,0.66,209.5,209.45,17.08043207]
[1759123506006,37.5,209.5,209.45,17.08043207]
[1759123506384,36.84,209.5,209.46,0.37]
[1759123506902,36.84,209.5,209.45,16.71043207]
[1759123507082,36.84,209.5,209.45,17.08043207]
[1759123507402,37.5,209.5,209.45,16.71043207]
[1759123507707,37.5,209.5,209.45,17.08043207]
[1759123508610,0.66,209.5,209.45,17.08043207]
[1759123510308,0.66,209.49,209.45,5.14440916]
[1759123511390,0.66,209.5,209.45,5.14440916]
[1759123514599,0.68,209.49,209.45,5.14440916]
[1759123514801,0.68,209.5,209.45,5.14440916]
[1759123516620,62.84,209.51,209.45,5.14440916]
[1759123516808,0.68,209.49,209.45,4.77440916]
[1759123516995,30.77309475,209.51,209.45,4.77440916]
[1759123517196,26.68,209.51,209.46,0.37]
[1759123517400,63.52,209.51,209.45,16.71043207]
[1759123517615,63.52,209.51,209.46,0.37]
[1759123517812,0.68,209.5,209.46,0.37]
[1759123518113,0.68,209.49,209.45,16.71043207]
[1759123518812,0.68,209.48,209.45,4.77440916]
[1759123519010,26.68,209.48,209.45,4.77440916]
[1759123520212,0.68,209.47,209.45,4.77440916]
[1759123520998,26.0,209.48,209.45,4.77440916]
[1759123521198,0.68,209.48,209.45,4.77440916]
[1759123521713,36.84,209.49,209.45,4.77440916]
[1759123521912,0.68,209.47,209.45,4.77440916]
[1759123522626,0.68,209.48,209.45,4.77440916]
[1759123523120,0.68,209.47,209.45,4.77440916]
[1759123524114,0.68,209.46,209.45,4.77440916]
[1759123525406,0.68,209.46,209.44,0.1]
[1759123525619,0.68,209.45,209.44,0.1]
[1759123526621,36.84,209.47,209.44,0.1]
[1759123526937,36.84,209.47,209.44,4.87456505]
[1759123527305,0.68,209.46,209.44,4.87456505]
[1759123527507,36.84,209.47,209.44,4.87456505]
[1759123527716,0.68,209.47,209.44,4.87456505]
[1759123532121,0.68,209.46,209.44,4.87456505]
[1759123533633,26.68,209.46,209.44,4.87456505]
[1759123534133,0.68,209.46,209.44,4.87456505]
[1759123534333,0.68,209.45,209.44,0.1]
[1759123537038,5.45440916,209.45,209.44,0.1]
[1759123537238,7.84630093,209.45,209.44,0.1]
[1759123537815,44.68630093,209.45,209.44,0.1]
[1759123538015,7.84630093,209.45,209.44,0.1]
[1759123538438,44.68630093,209.45,209.44,0.1]
[1759123539832,44.68786408,209.45,209.44,0.1]
[1759123540237,44.68630093,209.45,209.44,0.1]
[1759123540645,7.84630093,209.45,209.44,0.1]
[1759123541432,44.68630093,209.45,209.44,0.1]
[1759123541637,7.84630093,209.45,209.44,0.1]
[1759123541837,44.68630093,209.45,209.44,0.1]
[1759123542037,39.91189177,209.45,209.44,0.1]
[1759123542337,0.68,209.45,209.44,0.1]
[1759123542531,37.52,209.45,209.44,0.1]
[1759123544062,0.68,209.45,209.44,0.1]
[1759123544263,0.68,209.47,209.44,4.87459743]
[1759123544458,3.07189177,209.49,209.44,4.87459743]
[1759123544657,26.0,209.45,209.44,4.87459743]
[1759123545361,26.68,209.48,209.44,4.87459743]
[1759123545546,26.0,209.45,209.44,4.87459743]
[1759123546157,26.68,209.45,209.44,0.1]
[1759123546740,63.52,209.45,209.44,0.1]
[1759123547561,63.52,209.45,209.44,4.87463712]
[1759123547774,0.68,209.48,209.44,4.87463712]
[1759123547953,36.84,209.46,209.44,4.87463712]
[1759123548151,26.68,209.47,209.44,4.87463712]
[1759123548844,63.52,209.47,209.44,4.87463712]
[1759123549046,26.68,209.47,209.44,4.87463712]
[1759123549261,63.52,209.47,209.44,4.87463712]
[1759123549733,0.68,209.46,209.44,0.1]
[1759123549933,135.19189177,209.52,209.44,4.87454023]
[1759123549934,29.07189177,209.49,209.44,4.87454023]
[1759123550161,0.68,209.48,209.44,4.87454023]
[1759123550352,36.84,209.47,209.44,4.87454023]
[1759123550662,37.52,209.47,209.44,4.87454023]
[1759123551241,37.52,209.47,209.44,16.81113304]
[1759123552169,0.68,209.47,209.44,16.81113304]
[1759123552369,37.52,209.47,209.44,16.81113304]
[1759123553168,26.0,209.49,209.44,16.81113304]
[1759123553467,0.67,209.48,209.44,16.81113304]
[1759123553671,0.67,209.47,209.44,16.81113304]
[1759123554276,0.67,209.46,209.44,4.87454023]
[1759123556668,36.84,209.47,209.44,4.87454023]
[1759123556869,37.51,209.47,209.44,4.87454023]
[1759123558073,0.67,209.47,209.44,4.87454023]
[1759123558256,37.51,209.47,209.44,4.87454023]
[1759123558457,0.67,209.47,209.44,4.87454023]
[1759123558656,26.0,209.49,209.44,16.81113304]
[1759123558866,0.67,209.51,209.45,0.37]
[1759123559172,36.84,209.5,209.45,0.37]
[1759123559350,37.51,209.5,209.45,0.37]
[1759123559548,0.67,209.5,209.45,0.37]
[1759123559743,26.67,209.5,209.45,0.37]
[1759123559950,63.51,209.5,209.46,4.77418122]
[1759123560164,0.67,209.49,209.46,4.77418122]
[1759123560364,26.67,209.49,209.46,4.77418122]
[1759123561955,26.67,209.49,209.45,16.71043207]
[1759123562858,0.67,209.49,209.45,16.71043207]
[1759123563371,0.67,209.48,209.45,4.77440916]
[1759123563570,0.67,209.49,209.45,4.77440916]
[1759123564154,0.67,209.48,209.45,4.77440916]
[1759123566674,0.67,209.49,209.45,4.77440916]
[1759123567047,0.67,209.48,209.45,4.77440916]
[1759123567246,0.67,209.47,209.45,4.77440916]
[1759123567657,0.67,209.49,209.45,4.77440916]
[1759123568061,0.67,209.48,209.45,4.77440916]
[1759123568275,0.67,209.47,209.45,4.77440916]
[1759123568594,0.67,209.46,209.44,0.1]
[1759123568751,26.67,209.46,209.44,0.1]
[1759123569257,63.51,209.46,209.44,0.1]
[1759123569456,26.67,209.46,209.44,0.1]
[1759123569658,36.84,209.45,209.44,0.1]
[1759123570180,37.51,209.45,209.44,0.1]
[1759123571566,0.67,209.45,209.44,0.1]
[1759123571762,37.51,209.45,209.44,0.1]
[1759123571973,37.49,209.45,209.44,0.1]
[1759123572172,63.49,209.45,209.44,0.1]
[1759123572378,26.67,209.45,209.44,0.1]
[1759123572570,63.49,209.45,209.44,0.1]
[1759123572763,26.67,209.45,209.44,0.1]
[1759123572969,26.7,209.47,209.44,4.87463712]
[1759123573267,0.7,209.46,209.44,4.87463712]
[1759123573469,13.59559401,209.52,209.44,4.87463712]
[1759123573668,26.0,209.48,209.44,4.87463712]
[1759123573878,63.52,209.48,209.44,4.87463712]
[1759123575270,63.52,209.48,209.44,16.81122993]
[1759123576790,26.0,209.48,209.44,16.81122993]
[1759123576984,26.7,209.48,209.44,16.81122993]
[1759123577284,26.0,209.48,209.44,16.81122993]
[1759123577491,0.7,209.47,209.44,16.81122993]
[1759123578290,26.7,209.48,209.44,16.81122993]
[1759123578584,26.0,209.49,209.44,4.87463712]
[1759123578779,0.7,209.47,209.44,4.87463712]
[1759123581361,26.0,209.49,209.44,16.81122993]
[1759123581686,0.71,209.48,209.44,16.81122993]
[1759123581883,0.71,209.47,209.44,16.81122993]
[1759123585482,0.71,209.49,209.44,16.81122993]
[1759123585669,36.82,209.5,209.44,16.81122993]
[1759123585974,0.71,209.49,209.44,16.81122993]
[1759123586265,0.71,209.48,209.44,16.81122993]
[1759123586470,3.88792677,209.52,209.46,16.70963428]
[1759123586682,0.71,209.52,209.46,17.07963428]
[1759123587265,132.8,209.53,209.46,17.07963428]
[1759123587474,0.71,209.52,209.46,16.70963428]
[1759123587681,0.71,209.51,209.46,16.70963428]
[1759123587879,0.71,209.51,209.46,17.07963428]
[1759123588081,0.71,209.51,209.47,0.37]
[1759123588388,133.51,209.53,209.48,0.37]
[1759123588574,0.71,209.52,209.49,16.70724139]
[1759123589174,0.71,209.54,209.49,17.07724139]
[1759123589371,0.71,209.53,209.49,17.07724139]
[1759123589572,26.0,209.54,209.49,11.93374385]
[1759123589775,26.0,209.52,209.49,11.93374385]
[1759123590101,0.71,209.51,209.49,11.93374385]
[1759123590473,26.0,209.52,209.49,11.93374385]
[1759123590674,26.71,209.52,209.49,11.93374385]
[1759123590874,0.71,209.56,209.5,0.37]
[1759123591075,3.8996708,209.6,209.5,0.37]
[1759123591288,26.0,209.57,209.5,0.37]
[1759123591699,0.71,209.59,209.52,16.70484917]
[1759123591872,0.71,209.59,209.52,17.07484917]
[1759123592074,26.71,209.58,209.52,16.70484917]
[1759123592287,37.53,209.57,209.52,4.77281405]
[1759123592594,0.71,209.56,209.48,26.28912254]
[1759123592794,0.71,209.55,209.48,11.93402528]
[1759123593097,0.71,209.54,209.48,11.93402528]
[1759123593392,0.71,209.53,209.48,11.93402528]
[1759123593594,0.71,209.52,209.48,16.70775069]
[1759123595080,0.71,209.53,209.48,17.07775069]
[1759123595595,41.59191711,209.56,209.48,17.07775069]
[1759123595788,0.71,209.52,209.48,17.07775069]
[1759123596602,0.71,209.52,209.48,16.70775069]
[1759123598095,26.0,209.57,209.49,0.37]
[1759123598479,26.71,209.57,209.49,14.72303687]
[1759123598680,26.71,209.57,209.5,13.96559401]
[1759123598895,26.71,209.57,209.51,0.37]
[1759123600190,0.71,209.57,209.52,16.70484917]
[1759123600398,0.71,209.59,209.53,0.37]
[1759123601105,0.71,209.59,209.52,16.70484917]
[1759123601296,0.71,209.58,209.52,16.70484917]
[1759123601596,0.71,209.57,209.52,16.70484917]
[1759123601801,0.71,209.57,209.52,17.07484917]
[1759123602786,0.71,209.59,209.53,0.37]
[1759123604603,0.71,209.59,209.54,16.70325473]
[1759123604790,0.71,209.59,209.54,17.07325473]
[1759123604994,26.0,209.6,209.55,0.37]
[1759123605180,0.71,209.61,209.56,0.37]
[1759123605601,0.91,209.66,209.57,0.37]
[1759123605893,0.91,209.66,209.57,14.71754537]
[1759123606099,0.71,209.65,209.58,0.37]
[1759123606800,0.71,209.65,209.59,16.69927]
[1759123607297,0.71,209.64,209.59,16.69927]
[1759123607910,0.71,209.64,209.59,17.06927]
[1759123610389,0.71,209.64,209.6,0.37]
[1759123610606,0.91,209.66,209.59,11.92805]
[1759123610813,0.2,209.66,209.61,0.37]
[1759123611111,0.68,209.65,209.59,11.92805]
[1759123611292,0.68,209.64,209.59,37.92805]
[1759123611802,0.68,209.63,209.59,37.92805]
[1759123612196,0.68,209.63,209.59,38.29805]
[1759123612611,0.68,209.65,209.59,43.06927]
[1759123612915,0.68,209.64,209.59,43.06927]
[1759123614211,0.2,209.66,209.63,26.0]
[1759123614395,0.88,209.66,209.64,26.0]
[1759123615710,0.2,209.69,209.65,18.73544852]
[1759123615914,0.2,209.69,209.66,13.59559401]
[1759123616292,0.2,209.69,209.67,0.37]
[1759123617218,0.2,209.69,209.65,53.5144908]
[1759123617410,0.2,209.69,209.66,0.37]
[1759123618012,0.2,209.69,209.67,4.76939953]
[1759123619907,0.68,209.68,209.67,4.76939953]
[1759123620111,0.68,209.68,209.65,11.92463629]
[1759123621396,0.68,209.67,209.65,11.92463629]
[1759123623000,0.68,209.66,209.63,4.77030959]
[1759123623202,0.68,209.65,209.58,4.77144765]
[1759123623541,0.68,209.64,209.56,36.82]
[1759123623701,26.0,209.66,209.56,36.82]
[1759123623702,0.68,209.63,209.56,36.82]
[1759123624027,0.68,209.62,209.56,36.82]
[1759123624512,0.68,209.61,209.56,36.82]
[1759123624822,0.68,209.6,209.56,36.82]
[1759123625020,0.68,209.6,209.57,16.70086366]
[1759123625706,51.71795559,209.69,209.57,17.07086366]
[1759123625707,0.68,209.63,209.57,17.07086366]
[1759123625907,63.06,209.69,209.67,240.63609466]
[1759123627018,0.2,209.69,209.67,240.63609466]
[1759123627230,0.2,209.69,209.67,245.40543975]
[1759123627928,0.88,209.69,209.67,245.40543975]
[1759123628230,0.2,209.69,209.67,245.40543975]
[1759123628402,0.68,209.68,209.67,245.40543975]
[1759123628799,0.68,209.68,209.67,240.63609466]
[1759123630930,26.68,209.68,209.67,240.63609466]
[1759123631528,0.68,209.68,209.67,240.63609466]
[1759123631834,31.44917207,209.68,209.67,240.63609466]
[1759123632043,68.30917207,209.68,209.67,240.63609466]
[1759123636413,81.90476608,209.68,209.67,240.63609466]
[1759123636735,85.07063729,209.68,209.67,240.63609466]
[1759123637120,81.90476608,209.68,209.67,214.24789762]
[1759123637444,85.07056433,209.68,209.67,99.63821191]
[1759123637616,85.07072713,209.68,209.67,61.09520631]
[1759123638016,85.07072713,209.68,209.67,20.67049961]
[1759123638216,26.0,209.6,209.55,0.67]
[1759123638430,36.9,209.59,209.55,0.67]
[1759123638622,36.9,209.59,209.56,0.67]
[1759123642023,36.9,209.59,209.53,0.72]
[1759123642024,26.0,209.56,209.53,0.72]
[1759123642436,26.0,209.56,209.54,0.72]
[1759123643020,26.0,209.56,209.55,0.72]
[1759123643429,3.05600684,209.6,209.55,0.72]
[1759123643430,33.8269997,209.6,209.55,0.72]
[1759123643639,26.0,209.56,209.55,0.72]
[1759123644622,26.0,209.56,209.52,4.77281405]
[1759123644939,26.0,209.56,209.52,5.49281405]
[1759123645143,26.0,209.56,209.53,0.72]
[1759123645326,26.0,209.56,209.52,4.77281405]
[1759123645523,26.0,209.56,209.53,0.72]
[1759123645940,26.0,209.56,209.54,0.72]
[1759123646134,62.88,209.57,209.54,5.49225851]
[1759123646735,2.38600684,209.56,209.54,5.49225851]
[1759123650042,2.38600684,209.56,209.54,4.77225851]
[1759123650924,2.38600684,209.56,209.51,11.93244092]
[1759123651129,2.38600684,209.56,209.52,0.72]
[1759123651742,2.38600684,209.56,209.51,11.93244092]
[1759123652045,2.38600684,209.56,209.53,0.72]
[1759123652431,2.38600684,209.56,209.54,0.72]
[1759123653046,2.38600684,209.56,209.55,0.72]
[1759123653246,2.38600684,209.56,209.55,5.49213075]
[1759123653640,2.38600684,209.56,209.55,4.77213075]
[1759123654053,2.38600684,209.56,209.55,5.49213075]
[1759123654624,2.38600684,209.56,209.53,0.72]
[1759123654951,2.38600684,209.56,209.54,0.72]
[1759123655652,2.38600684,209.56,209.54,4.7721495]
[1759123656040,2.38600684,209.56,209.54,5.4921495]
[1759123657149,2.38600684,209.56,209.54,4.7721495]
[1759123658050,2.38600684,209.56,209.53,4.77258626]
[1759123658256,0.67,209.55,209.53,4.77258626]
[1759123658458,26.0,209.55,209.53,4.77258626]
[1759123658953,39.20600684,209.56,209.53,4.77258626]
[1759123659263,39.20600684,209.56,209.54,0.72]
[1759123659431,2.38600684,209.56,209.54,0.72]
[1759123659636,26.0,209.55,209.54,0.72]
[1759123659837,26.0,209.55,209.53,4.77258626]
[1759123660044,26.0,209.55,209.53,5.49258626]
[1759123660557,26.0,209.55,209.54,0.72]
[1759123663654,26.0,209.55,209.54,5.49235849]
[1759123664241,2.38600684,209.58,209.54,5.49235849]
[1759123664448,2.38600684,209.58,209.55,0.72]
[1759123665266,2.38600684,209.58,209.56,0.72]
[1759123665558,2.38600684,209.6,209.57,4.77167533]
[1759123665857,39.18600684,209.6,209.58,0.72]
[1759123666059,2.38600684,209.6,209.58,0.72]
[1759123666263,26.0,209.59,209.58,0.72]
[1759123666456,2.38600684,209.6,209.58,0.72]
[1759123666659,28.38600684,209.6,209.59,0.72]
[1759123667237,28.38600684,209.6,209.57,5.49167533]
[1759123667447,2.38600684,209.66,209.59,16.69927]
[1759123667757,36.8,209.65,209.6,0.72]
[1759123668159,62.8,209.65,209.6,0.72]
[1759123668360,26.0,209.65,209.6,0.72]
[1759123668560,2.38600684,209.68,209.6,0.72]
[1759123668867,36.8,209.67,209.6,0.72]
[1759123669455,36.8,209.67,209.61,16.69767663]
[1759123669767,36.82,209.68,209.62,0.72]
[1759123671143,62.8,209.68,209.62,0.72]
[1759123671469,62.8,209.68,209.63,4.77030959]
[1759123671470,63.47,209.68,209.63,4.77030959]
[1759123671669,26.67,209.68,209.64,0.67]
[1759123671858,63.47,209.68,209.64,0.67]
[1759123672058,63.47,209.68,209.63,16.69608357]
[1759123672059,0.67,209.67,209.63,4.77030959]
[1759123672270,0.67,209.66,209.63,4.77030959]
[1759123672965,0.67,209.65,209.63,4.77030959]
[1759123673169,0.67,209.64,209.63,4.77030959]
[1759123673677,65.18600684,209.68,209.6,16.69823519]
[1759123673973,0.67,209.67,209.6,17.36823519]
[1759123674270,0.67,209.66,209.6,16.69823519]
[1759123674450,64.32837441,209.68,209.61,0.67]
[1759123674644,64.99837441,209.68,209.61,0.67]
[1759123675052,26.67,209.68,209.61,0.67]
[1759123675256,0.2,209.69,209.62,13.59559401]
[1759123675453,0.2,209.69,209.63,0.67]
[1759123675652,0.2,209.69,209.64,16.69528715]
[1759123675869,0.2,209.69,209.65,0.67]
[1759123676757,0.2,209.69,209.66,13.59559401]
[1759123676962,0.2,209.69,209.67,0.67]
[1759123678075,0.2,209.69,209.68,4.76917207]
[1759123678370,0.2,209.69,209.68,5.43917207]
[1759123680656,0.2,209.69,209.68,4.76917207]
[1759123681559,0.2,209.69,209.67,4.76939953]
[1759123681776,0.2,209.69,209.67,5.43939953]
[1759123681976,0.2,209.69,209.68,0.67]
[1759123682180,0.2,209.69,209.67,5.43939953]
[1759123686487,0.2,209.69,209.68,0.67]
[1759123688081,0.2,209.69,209.66,11.92387819]
[1759123688276,0.2,209.69,209.64,16.69528715]
[1759123688277,0.67,209.68,209.64,16.69528715]
[1759123688474,0.67,209.68,209.61,13.59559401]
[1759123688678,0.67,209.68,209.62,0.67]
[1759123690490,0.2,209.69,209.63,16.69608357]
[1759123690699,0.2,209.69,209.64,0.67]
[1759123690889,0.87,209.69,209.65,0.67]
[1759123692095,0.87,209.69,209.63,16.69608357]
[1759123692295,0.2,209.69,209.64,0.67]
[1759123692706,0.2,209.69,209.65,16.6944908]
[1759123692874,0.2,209.69,209.65,17.4044908]
[1759123693201,0.2,209.69,209.65,16.6944908]
[1759123693387,0.2,209.69,209.66,0.71]
[1759123694499,0.2,209.69,209.65,16.6944908]
[1759123694700,0.2,209.69,209.62,16.69688006]
[1759123694701,0.86,209.69,209.62,16.69688006]
[1759123694890,0.86,209.69,209.65,0.71]